bitfinex-derivatives/quotes_ETHF0:USTF0_20251009
["timestamp","ask_amount","ask_price","bid_price","bid_amount"]
[1759973895561,4.87998047,4471.1,4470.7,0.40249]
[1759973895562,1.34643,4470.3,4470.2,3.2078]
[1759973895859,4.5662858,4470.3,4470.2,3.2078]
[1759973896249,4.5662858,4470.3,4470.2,3.82604]
[1759973896449,4.5662858,4470.3,4470.2,3.2078]
[1759973896450,4.9688158,4470.3,4470.2,3.2078]
[1759973896658,4.9688158,4470.3,4470.2,3.43357906]
[1759973896853,4.5662858,4470.3,4470.2,3.43357906]
[1759973897252,4.9688158,4470.3,4470.2,3.43357906]
[1759973897448,9.9688158,4470.3,4470.2,0.00177906]
[1759973897655,1.8853,4469.5,4469.4,0.2157]
[1759973897861,1.2061,4469.5,4469.4,0.224]
[1759973898449,0.9439,4469.2,4469.1,3.4235]
[1759973898763,1.6231,4469.2,4469.1,0.4415365]
[1759973899149,1.6231,4469.2,4469.1,0.0018365]
[1759973899355,4.5473643,4469.2,4469.1,0.0018365]
[1759973899555,4.5473643,4469.2,4469.1,0.2258365]
[1759973899854,4.5473643,4469.2,4468.0,0.1348]
[1759973899855,0.2622,4468.5,4468.1,3.2078]
[1759973900159,0.2622,4469.0,4468.9,0.40266]
[1759973900362,3.47,4470.0,4469.4,0.5738]
[1759973900653,4.49919981,4469.9,4469.8,0.2186]
[1759973900859,4.50105218,4469.9,4469.8,0.22119749]
[1759973901252,4.50105218,4469.9,4469.8,0.00259749]
[1759973901448,0.68105237,4469.9,4469.8,0.43979749]
[1759973901649,0.00185237,4469.9,4469.8,1.40845319]
[1759973902055,0.00185237,4469.9,4469.8,0.57639749]
[1759973902462,0.68105237,4469.9,4469.8,0.57639749]
[1759973903559,0.68105237,4469.9,4469.8,0.43979749]
[1759973904061,4.58149514,4469.9,4469.8,0.00259749]
[1759973904263,0.6792,4468.4,4468.0,3.59363583]
[1759973904561,0.6792,4468.4,4468.1,0.62673]
[1759973904761,0.6792,4468.4,4468.2,0.40272]
[1759973905159,0.2622,4468.5,4468.2,0.40272]
[1759973905360,0.9414,4468.5,4468.4,3.2078]
[1759973905562,0.9414,4468.5,4468.4,3.4318]
[1759973905959,0.6792,4468.5,4468.4,3.4318]
[1759973906156,0.2622,4469.0,4468.9,0.40266]
[1759973906157,0.9414,4469.0,4468.9,0.40266]
[1759973906360,0.9414,4469.0,4468.9,4.2638557]
[1759973906661,0.9414,4469.0,4468.9,3.4318]
[1759973907757,0.9414,4469.0,4468.9,3.2078]
[1759973907959,0.9414,4469.0,4468.9,3.4318]
[1759973908863,1.8853,4469.0,4468.9,3.4318]
[1759973909059,1.8853,4469.0,4468.9,3.869]
[1759973909267,0.9414,4469.0,4468.9,4.0056]
[1759973909865,0.9414,4469.0,4468.9,3.869]
[1759973910566,1.8853,4468.5,4468.4,3.2078]
[1759973910868,4.79270053,4468.5,4468.4,3.4318]
[1759973911357,4.79270053,4468.5,4468.4,3.2078]
[1759973911563,4.79270053,4468.5,4468.4,3.4318]
[1759973912063,4.79270053,4468.5,4468.4,3.2078]
[1759973912263,4.79270053,4468.5,4468.4,3.4318]
[1759973912664,4.79270053,4468.5,4468.4,3.2078]
[1759973912868,4.79270053,4468.5,4468.4,3.4318]
[1759973913860,4.79270053,4468.5,4468.0,0.40274]
[1759973914060,1.6231,4468.3,4467.9,0.02238213]
[1759973914273,1.6231,4468.3,4467.9,0.24638213]
[1759973914469,4.54276044,4468.3,4467.9,0.02238213]
[1759973914764,4.54276044,4468.3,4467.9,0.24638213]
[1759973914765,9.54276044,4468.3,4467.9,0.24638213]
[1759973914966,2.28804,4468.0,4467.9,0.02238213]
[1759973915162,0.9439,4467.4,4467.3,3.2078]
[1759973915364,1.6231,4467.4,4467.3,3.2078]
[1759973915566,4.47850808,4467.4,4467.3,3.2078]
[1759973916065,4.47850808,4467.4,4467.3,3.20964243]
[1759973916265,4.47850808,4467.4,4467.3,3.43364243]
[1759973917363,4.47850808,4467.4,4467.3,3.20964243]
[1759973917669,4.47850808,4467.4,4467.3,3.43364243]
[1759973917862,4.47850808,4467.4,4467.3,3.20964243]
[1759973918063,4.47850808,4467.4,4467.3,3.43364243]
[1759973918267,4.47850808,4467.4,4467.3,0.22584243]
[1759973918868,9.47850808,4467.4,4467.3,0.00184243]
[1759973919267,0.9118,4466.4,4466.3,0.4148]
[1759973919468,0.2765,4466.5,4466.4,0.59368]
[1759973919773,0.2765,4466.5,4466.3,3.2078]
[1759973919774,4.13481675,4466.5,4466.3,3.2078]
[1759973919973,1.5899,4466.4,4466.3,3.2078]
[1759973920174,1.59189971,4466.4,4466.3,3.43423934]
[1759973920373,4.48471101,4466.4,4466.3,3.43423934]
[1759973920875,4.48471101,4466.4,4466.3,3.21023934]
[1759973921077,4.48471101,4466.4,4466.3,3.43423934]
[1759973922272,0.6781,4466.9,4466.3,3.74433934]
[1759973922576,0.40272,4468.2,4467.4,0.40279]
[1759973922875,3.2078,4468.3,4467.4,0.62679]
[1759973923074,0.8963,4467.5,4467.4,0.224]
[1759973923273,0.89864256,4467.5,4467.4,0.224]
[1759973924071,0.63644256,4467.5,4467.4,0.3402]
[1759973924478,0.00234256,4467.5,4467.4,0.3402]
[1759973924878,0.6341,4467.4,4467.3,3.2078]
[1759973925074,0.6341,4467.4,4467.3,3.4318]
[1759973925282,3.55104371,4467.4,4467.3,3.4318]
[1759973926175,4.42594371,4467.4,4467.3,3.4318]
[1759973926583,4.42594371,4467.4,4467.3,3.6177]
[1759973926881,0.6341,4466.4,4466.2,0.4029]
[1759973927072,0.6341,4466.4,4466.3,0.22643934]
[1759973927977,0.2627,4467.0,4466.5,1.00717]
[1759973928174,0.6341,4466.9,4466.6,3.548]
[1759973928373,0.6341,4466.9,4466.7,0.1162]
[1759973928676,0.6341,4466.9,4466.8,0.74305]
[1759973928984,0.6341,4466.7,4466.3,0.00243934]
[1759973929177,0.6341,4466.8,4466.7,0.40286]
[1759973929373,0.6341,4466.8,4466.7,0.62686]
[1759973929678,0.8968,4467.0,4466.9,0.40284]
[1759973929877,0.8968,4467.0,4466.9,0.62684]
[1759973930272,4.10694256,4467.5,4467.4,0.40279]
[1759973930479,0.89914256,4467.5,4467.4,0.62679]
[1759973931281,0.89914256,4467.5,4467.4,0.224]
[1759973931675,0.8968,4466.5,4466.4,0.40288]
[1759973931981,3.83573708,4466.5,4466.4,0.40288]
[1759973933778,0.6341,4466.4,4466.3,0.22643934]
[1759973934578,0.6341,4466.4,4466.3,0.22743934]
[1759973934783,3.93249952,4466.4,4466.3,0.00243934]
[1759973934977,3.52961952,4466.4,4466.3,0.00243934]
[1759973935383,3.52961952,4466.4,4466.3,0.22643934]
[1759973936076,3.52961952,4466.4,4466.3,0.22743934]
[1759973936379,8.52961952,4466.4,4466.3,0.00243934]
[1759973936977,3.52961952,4466.4,4466.3,0.00243934]
[1759973941283,3.96401952,4466.4,4466.3,0.37423934]
[1759973941578,3.52961952,4466.4,4466.3,0.37423934]
[1759973941788,3.96401952,4466.4,4466.3,0.37423934]
[1759973942685,3.96401952,4466.4,4466.3,0.18833934]
[1759973942890,4.40451952,4466.4,4466.3,0.00243934]
[1759973944486,4.80739952,4466.4,4466.3,0.00243934]
[1759973944786,4.40451952,4466.4,4466.3,0.00243934]
[1759973947884,4.40451952,4466.4,4466.3,0.77712934]
[1759973948183,4.40451952,4466.4,4466.3,0.37423934]
[1759973948379,4.40451952,4466.4,4466.3,0.59122934]
[1759973948792,4.40451952,4466.4,4466.3,0.40532934]
[1759973950188,4.40451952,4466.4,4466.3,0.00243934]
[1759973950486,4.40451952,4466.4,4466.3,0.40532934]
[1759973952584,4.40451952,4466.4,4466.3,0.79792934]
[1759973954692,0.6391,4466.9,4466.8,0.91815]
[1759973954892,0.6391,4467.4,4467.3,0.1963]
[1759973955094,1.0935,4467.4,4467.3,1.0204]
[1759973955389,4.47351376,4467.4,4467.3,0.6176]
[1759973955789,4.47351376,4467.4,4467.3,0.4213]
[1759973956893,4.47351376,4467.4,4467.3,0.8241]
[1759973957088,1.5194,4467.4,4467.3,0.8241]
[1759973957598,0.00234256,4467.5,4467.4,1.56909]
[1759973957790,0.00234256,4467.5,4467.4,2.23830104]
[1759973958692,3.4843,4468.0,4467.9,0.40275]
[1759973958891,3.2078,4468.0,4467.9,2.46326104]
[1759973959089,3.2078,4468.0,4467.9,2.06051104]
[1759973959286,3.2078,4468.0,4467.9,1.77601104]
[1759973959594,4.1238,4468.0,4467.9,1.77601104]
[1759973959796,4.12645636,4468.0,4467.9,1.77601104]
[1759973960596,4.58115636,4468.0,4467.9,1.77441104]
[1759973960896,4.58115636,4468.0,4467.9,1.1052]
[1759973961285,4.58115636,4468.0,4467.9,1.77441104]
[1759973961488,4.12645636,4468.0,4467.9,1.77441104]
[1759973961688,4.58115636,4468.0,4467.9,1.77441104]
[1759973961889,0.8813,4467.4,4467.3,0.8436]
[1759973962193,1.5399,4467.4,4467.3,0.224]
[1759973962493,1.5399,4467.4,4466.7,1.5993467]
[1759973962494,1.5399,4466.8,4466.7,1.5993467]
[1759973962688,2.61196104,4466.8,4466.6,0.224]
[1759973962885,5.4625524,4466.8,4466.6,0.224]
[1759973964396,5.4625524,4466.8,4466.3,0.40532934]
[1759973964397,0.8813,4466.4,4466.3,0.00243934]
[1759973964600,1.5399,4466.4,4466.3,0.22643934]
[1759973965193,8.00452703,4466.4,4466.3,0.22643934]
[1759973965798,8.00452703,4466.4,4465.5,1.5993467]
[1759973965799,0.8813,4465.6,4465.5,1.5993467]
[1759973966000,0.6586,4465.3,4465.1,0.403]
[1759973966197,1.1133,4465.3,4465.2,1.0889]
[1759973966402,0.6586,4465.6,4465.5,0.8649]
[1759973966905,1.1133,4465.6,4465.5,0.86695069]
[1759973967807,1.5399,4465.6,4465.5,0.86695069]
[1759973968704,1.1133,4465.6,4465.5,0.86695069]
[1759973969811,0.6586,4465.6,4465.5,0.86695069]
[1759973972815,1.1133,4465.6,4465.5,1.09195069]
[1759973973010,1.1133,4465.6,4465.5,1.49491069]
[1759973973511,0.6586,4465.6,4465.5,1.49491069]
[1759973973812,3.2078,4465.9,4465.8,0.8649]
[1759973974010,3.2078,4465.9,4465.8,1.26784]
[1759973974205,0.4547,4465.9,4465.8,1.26784]
[1759973974405,1.1133,4465.9,4465.8,1.0899]
[1759973974620,1.5399,4465.9,4465.8,1.0899]
[1759973975212,1.5399,4465.9,4465.8,1.49284]
[1759973975412,0.4547,4465.6,4465.5,0.00205069]
[1759973975613,1.5399,4465.6,4465.5,0.00205069]
[1759973975815,4.50135652,4465.6,4465.5,0.00205069]
[1759973976612,4.50135652,4465.6,4465.5,0.44285069]
[1759973976811,1.5399,4465.6,4465.5,0.00205069]
[1759973977012,6.94286,4465.6,4465.5,0.00205069]
[1759973977311,4.47637024,4465.6,4465.5,0.00205069]
[1759973978112,3.2078,4465.9,4465.8,0.40294]
[1759973978315,4.3211,4465.9,4465.8,1.26784]
[1759973978714,1.1133,4465.9,4465.8,1.26784]
[1759973978920,4.9811,4466.5,4466.4,1.24648]
[1759973979220,4.5636,4466.5,4466.4,1.47148]
[1759973980018,4.1222,4466.5,4466.4,1.73508]
[1759973980216,4.1222,4466.5,4466.4,1.47148]
[1759973981120,3.8648,4466.5,4466.4,1.73508]
[1759973981417,3.8648,4466.5,4466.4,1.47148]
[1759973982018,4.123,4466.5,4466.4,1.47148]
[1759973982418,3.2078,4466.5,4466.4,1.73508]
[1759973985224,0.2574,4467.0,4466.4,1.47148]
[1759973985421,0.66023,4467.0,4466.4,1.47148]
[1759973985625,1.3595,4466.5,4466.4,1.0686]
[1759973986325,1.0954,4466.9,4466.8,0.8338]
[1759973986519,1.0954,4466.9,4466.8,1.0588]
[1759973989427,1.5179,4466.9,4466.8,1.0588]
[1759973989924,0.40289,4466.3,4466.1,3.2078]
[1759973990128,1.92081,4466.2,4465.8,0.6690461]
[1759973990321,1.5179,4465.9,4465.8,1.0859461]
[1759973990628,1.5179,4465.9,4465.8,1.0578]
[1759973992123,0.40295,4465.7,4465.5,1.60139739]
[1759973992318,1.92085,4465.7,4465.5,0.00205069]
[1759973992521,1.92085,4465.7,4465.6,0.224]
[1759973993732,0.2641,4466.0,4465.8,1.49733]
[1759973994031,3.8912,4466.1,4466.0,1.0944]
[1759973994232,3.8912,4466.1,4466.0,1.3184]
[1759973995522,0.6834,4466.1,4466.0,1.3184]
[1759973995719,0.2641,4466.5,4466.0,1.3184]
[1759973995720,0.9475,4466.5,4466.3,0.40288]
[1759973995924,3.2078,4466.6,4466.5,0.2606]
[1759973996124,3.8912,4466.6,4466.5,1.0944]
[1759973996427,3.8912,4466.6,4466.5,0.8338]
[1759973996428,4.3032,4466.6,4466.5,0.8338]
[1759973996829,1.3528,4467.0,4466.9,0.8338]
[1759973997127,1.3528,4467.0,4466.9,1.0588]
[1759973997329,0.9408,4467.0,4466.9,1.3194]
[1759973997529,3.8912,4467.1,4467.0,1.23663]
[1759973997729,3.8912,4467.1,4467.0,1.49723]
[1759973997925,0.40284,4466.9,4466.1,0.2606]
[1759973998130,4.3137,4467.1,4466.1,0.2606]
[1759973998131,1.782,4466.5,4466.4,0.8338]
[1759973998532,1.3595,4466.5,4466.4,0.8338]
[1759973998732,0.6834,4466.5,4466.4,1.0944]
[1759973999033,0.6761,4467.0,4466.9,0.8338]
[1759973999230,0.6761,4467.0,4466.9,1.0578]
[1759973999627,1.3595,4467.0,4466.9,1.0578]
[1759974000435,1.782,4467.0,4466.9,1.0578]
[1759974000737,1.782,4467.0,4466.9,1.46064]
[1759974001031,0.6834,4467.0,4466.9,1.72124]
[1759974001326,1.0919,4467.5,4467.4,0.4169]
[1759974001532,1.0919,4467.5,4467.4,0.6409]
[1759974001835,4.74960441,4467.5,4467.4,0.6409]
[1759974002427,4.74960441,4467.5,4467.4,1.0578]
[1759974003331,0.9408,4467.5,4467.4,1.3184]
[1759974003532,0.6834,4467.6,4467.5,1.49718]
[1759974003832,0.95015636,4468.0,4467.9,1.49715]
[1759974004033,0.95015636,4468.0,4467.9,1.72115]
[1759974004332,3.8912,4468.6,4468.5,0.40269]
[1759974004536,3.8912,4468.6,4468.5,1.72109]
[1759974005033,0.6834,4468.6,4468.5,1.72109]
[1759974005331,1.09763286,4468.6,4468.5,1.46049]
[1759974006828,1.09763286,4468.6,4468.5,1.0578]
[1759974007026,1.09763286,4468.6,4467.8,37.31469014]
[1759974007027,0.412,4467.9,4467.8,0.4169]
[1759974007227,1.0954,4467.9,4467.8,1.0578]
[1759974007632,0.6834,4467.9,4467.8,1.3184]
[1759974009930,0.2641,4468.0,4467.9,1.41465]
[1759974010133,0.6493,4468.2,4468.1,1.17373]
[1759974010530,1.0755,4468.2,4468.1,1.17373]
[1759974010738,0.2641,4468.5,4468.4,0.4027]
[1759974011038,0.00223286,4468.6,4468.4,1.6386]
[1759974011229,0.9012,4468.5,4468.4,1.6386]
[1759974011435,1.3274,4468.5,4468.4,1.3977]
[1759974013839,0.00223286,4468.6,4468.4,1.3977]
[1759974013840,0.00223286,4468.6,4468.5,1.41459]
[1759974014142,0.65153286,4468.6,4468.5,1.41459]
[1759974014437,1.7571,4468.5,4468.4,0.7882]
[1759974014637,1.7571,4468.5,4468.4,0.224]
[1759974015542,1.7571,4468.5,4468.4,0.6267]
[1759974015739,1.7571,4468.5,4468.4,0.224]
[1759974016339,1.7571,4468.5,4468.4,0.6267]
[1759974016539,0.6816,4468.0,4467.6,3.2078]
[1759974016745,1.5052,4467.8,4467.7,1.01227]
[1759974017336,1.5052,4467.8,4467.7,1.39777]
[1759974018441,1.5052,4467.8,4467.7,0.995]
[1759974018639,1.5052,4467.8,4467.7,1.39777]
[1759974020047,1.5052,4467.8,4467.7,1.17377]
[1759974020346,1.5052,4467.8,4467.7,1.39777]
[1759974020535,0.4262,4467.2,4467.1,3.2078]
[1759974020734,2.93054546,4467.8,4467.1,3.2078]
[1759974020735,0.2519,4467.5,4467.4,0.78829]
[1759974020940,0.6493,4467.7,4467.6,1.41467]
[1759974022140,1.0755,4467.7,4467.6,1.17377]
[1759974022342,1.5052,4467.7,4467.6,1.17377]
[1759974022742,1.5052,4467.7,4467.6,0.771]
[1759974022937,1.5052,4467.7,4467.6,1.17377]
[1759974023445,1.0755,4467.2,4467.1,4.38162]
[1759974023643,1.0755,4467.2,4467.1,4.60562]
[1759974024340,1.5052,4467.2,4467.1,3.2078]
[1759974024541,4.36507596,4467.2,4467.1,1.39782]
[1759974024748,1.5052,4467.2,4467.1,0.995]
[1759974026051,1.5052,4466.7,4466.6,0.3855]
[1759974026246,1.5052,4466.7,4466.6,0.6095]
[1759974027051,1.5052,4466.7,4466.6,1.01237]
[1759974027445,1.5052,4466.7,4466.6,0.6095]
[1759974027744,0.8559,4466.2,4466.1,3.99621]
[1759974027946,1.0755,4466.2,4466.1,4.60571]
[1759974029147,1.0755,4466.2,4466.1,4.2028]
[1759974029348,1.0755,4466.2,4466.1,0.995]
[1759974029551,1.5052,4466.2,4466.1,0.995]
[1759974030048,1.0755,4466.2,4466.1,0.995]
[1759974033653,0.6493,4466.2,4466.1,0.995]
[1759974033848,0.6493,4466.4,4466.3,1.0119]
[1759974034056,0.6493,4466.4,4466.3,1.2359]
[1759974034256,3.5245447,4466.4,4466.3,1.2359]
[1759974034554,3.9507447,4466.4,4466.3,0.995]
[1759974035555,3.9507447,4466.4,4466.3,1.39789]
[1759974036252,1.0755,4466.4,4466.3,1.39789]
[1759974036451,0.6493,4466.4,4466.3,1.63879]
[1759974036645,1.5052,4466.4,4466.3,1.01239]
[1759974037048,0.6493,4466.4,4466.3,1.39789]
[1759974037249,4.5352,4467.0,4466.9,0.771]
[1759974037450,4.5352,4467.0,4466.9,0.995]
[1759974037645,7.85060999,4467.0,4466.9,0.995]
[1759974038150,7.85060999,4467.0,4466.9,1.39784]
[1759974038351,4.109,4467.0,4466.9,1.63874]
[1759974038853,0.9012,4467.0,4466.9,1.63874]
[1759974039852,1.0269,4467.4,4467.3,1.10219]
[1759974040050,0.6181,4467.4,4467.3,1.54479]
[1759974040754,1.0269,4467.4,4467.3,1.32619]
[1759974040955,0.6181,4467.4,4467.3,1.54479]
[1759974041756,0.6181,4467.8,4467.7,0.75246]
[1759974041949,0.6181,4467.8,4467.7,1.54476]
[1759974042261,0.6181,4468.0,4467.9,1.32075]
[1759974042650,0.8611,4468.0,4467.9,1.32075]
[1759974043755,0.891,4468.5,4468.4,0.345]
[1759974043961,1.3195,4468.5,4468.4,0.914]
[1759974044262,4.6833457,4468.5,4468.4,0.914]
[1759974045255,0.891,4468.5,4468.4,1.96341498]
[1759974047259,0.891,4468.5,4468.4,1.1296]
[1759974047861,0.891,4468.5,4468.4,0.914]
[1759974048069,1.3195,4468.5,4468.4,0.914]
[1759974048862,1.3195,4468.5,4468.4,1.1296]
[1759974049069,1.3195,4468.5,4468.4,1.5323]
[1759974049669,1.3195,4468.5,4468.4,1.1296]
[1759974049971,1.7567,4468.5,4468.4,1.3167]
[1759974050274,1.3195,4468.5,4468.4,1.5323]
[1759974050464,0.891,4468.5,4468.4,1.5323]
[1759974052170,1.0676,4467.8,4467.7,1.09276]
[1759974052467,1.0676,4467.8,4467.7,1.31676]
[1759974053369,4.0988,4468.5,4468.4,1.3083]
[1759974053573,4.0988,4468.5,4468.4,2.36611498]
[1759974053768,4.0988,4468.5,4467.9,4.30055]
[1759974053769,0.6692,4468.0,4467.9,4.30055]
[1759974053973,1.7455,4468.0,4467.9,4.52455]
[1759974054869,1.3083,4468.0,4467.9,4.52455]
[1759974055067,1.7455,4468.0,4467.9,4.17955]
[1759974055265,1.7455,4468.0,4467.9,4.52455]
[1759974055972,0.8798,4468.0,4467.9,4.74015]
[1759974056572,0.6391,4468.0,4467.9,4.74015]
[1759974057174,3.8882,4468.5,4468.4,1.0927]
[1759974057374,3.8882,4468.5,4468.4,1.3167]
[1759974057768,4.9645,4468.5,4468.4,1.3167]
[1759974057974,4.9645,4468.5,4468.4,0.224]
[1759974058171,4.0988,4468.5,4468.4,1.3167]
[1759974058474,4.0988,4468.5,4468.4,2.36611498]
[1759974058475,0.6391,4468.5,4468.4,2.36611498]
[1759974058976,0.8798,4468.5,4468.4,2.36611498]
[1759974059364,1.7455,4468.5,4468.4,0.9717]
[1759974059770,1.7455,4468.5,4468.4,1.3167]
[1759974059970,1.3083,4468.5,4468.4,1.3167]
[1759974060171,1.3083,4468.5,4468.4,1.5323]
[1759974060370,0.8798,4468.5,4468.4,1.5323]
[1759974060576,1.3083,4468.5,4468.4,1.3167]
[1759974062171,1.3083,4468.5,4468.4,1.5323]
[1759974062375,0.8798,4468.5,4468.4,1.5323]
[1759974062673,0.6391,4469.3,4469.2,0.69]
[1759974062879,0.6391,4469.5,4469.4,0.9056]
[1759974063182,0.6391,4469.5,4469.4,1.30821]
[1759974063678,0.6391,4469.9,4469.8,1.09257]
[1759974063879,0.00180407,4469.9,4469.8,2.15038498]
[1759974064077,0.00180407,4469.9,4469.8,2.36598498]
[1759974064277,0.64090407,4469.9,4469.8,2.36598498]
[1759974065473,0.64090407,4469.9,4469.8,1.96341498]
[1759974065668,0.64090407,4469.9,4469.4,0.00256134]
[1759974065669,1.7455,4469.5,4469.4,0.00256134]
[1759974065876,1.7455,4469.5,4469.4,0.22656134]
[1759974066076,4.69598083,4469.5,4469.4,0.22656134]
[1759974067378,1.3083,4469.5,4469.4,0.91656134]
[1759974067880,3.2078,4469.6,4469.5,1.3082]
[1759974068075,0.00180407,4469.9,4469.8,1.09258]
[1759974068076,0.64090407,4469.9,4469.8,1.09258]
[1759974068376,0.64090407,4469.9,4469.8,1.31658]
[1759974068579,0.64090407,4469.9,4469.8,1.53218]
[1759974068968,0.61580407,4469.9,4469.8,1.53218]
[1759974069182,0.00180407,4469.9,4469.8,1.53218]
[1759974075975,4.04500407,4469.9,4469.8,0.6292]
[1759974076173,4.40285828,4469.9,4469.8,0.5386]
[1759974076774,4.40285828,4469.9,4469.8,0.224]
[1759974077182,4.40285828,4469.9,4469.8,0.5386]
[1759974078182,4.40285828,4469.9,4469.8,0.224]
[1759974078483,4.40285828,4469.9,4469.4,0.00256134]
[1759974078484,1.7005,4469.5,4469.4,0.00256134]
[1759974078678,1.7005,4469.5,4469.4,0.22656134]
[1759974078884,4.6694062,4469.5,4469.4,0.22656134]
[1759974079583,4.6694062,4469.5,4469.4,0.00256134]
[1759974079782,4.6694062,4469.5,4469.4,0.22656134]
[1759974080689,4.6694062,4469.5,4469.4,0.54116134]
[1759974081090,4.6694062,4469.5,4469.4,0.85576134]
[1759974081289,1.7005,4469.5,4469.4,0.85576134]
[1759974081792,0.8651,4469.5,4469.4,1.05236134]
[1759974082092,0.614,4469.5,4469.4,1.05236134]
[1759974082686,3.8218,4469.7,4469.6,0.8258]
[1759974082887,3.2078,4469.7,4469.6,0.8258]
[1759974083889,3.8218,4469.7,4469.6,0.8258]
[1759974084687,3.2078,4469.7,4469.6,0.8258]
[1759974086287,3.8218,4469.7,4469.6,0.8258]
[1759974087294,3.8218,4469.7,4469.6,0.6292]
[1759974087992,1.7005,4469.5,4469.4,0.00256134]
[1759974088182,1.7005,4469.5,4469.4,0.22656134]
[1759974088388,4.5886008,4469.5,4469.4,0.22656134]
[1759974088693,9.5886008,4469.5,4469.4,0.00256134]
[1759974088989,9.5886008,4469.5,4469.4,0.22656134]
[1759974089194,9.5886008,4469.5,4469.4,0.00256134]
[1759974089398,9.5886008,4469.5,4469.4,0.22656134]
[1759974089696,9.5886008,4469.5,4469.4,0.54116134]
[1759974089894,4.5886008,4469.5,4469.4,0.85576134]
[1759974090198,0.8651,4469.5,4469.4,1.05236134]
[1759974090694,1.2902,4469.5,4469.4,0.85576134]
[1759974091091,1.7005,4469.5,4469.4,0.85576134]
[1759974091794,4.65724058,4469.5,4469.4,0.00256134]
[1759974091986,4.65724058,4469.5,4469.4,0.22656134]
[1759974092188,10.72822118,4469.5,4469.4,0.22656134]
[1759974093699,10.05984058,4469.5,4469.4,0.22656134]
[1759974094595,9.65724058,4469.5,4469.4,0.22656134]
[1759974096194,10.05984058,4469.5,4469.4,0.22656134]
[1759974096696,10.05984058,4469.5,4469.4,0.00256134]
[1759974099792,9.65724058,4469.5,4469.4,0.00256134]
[1759974100099,10.05984058,4469.5,4469.4,0.00256134]
[1759974100298,4.0729,4469.5,4469.4,1.17477134]
[1759974100499,0.00180407,4469.9,4469.8,0.85758]
[1759974100803,0.00180407,4469.9,4469.8,1.13758]
[1759974102095,0.00180407,4469.9,4469.8,6.13758]
[1759974102307,0.00180407,4469.9,4469.8,1.13758]
[1759974103005,0.8912,4470.5,4470.4,0.5508]
[1759974103300,0.8912,4470.5,4470.4,0.9469]
[1759974103899,0.89381255,4470.5,4470.4,0.9469]
[1759974104197,0.00261255,4470.5,4470.4,0.9469]
[1759974104793,0.00261255,4470.5,4470.4,5.9469]
[1759974105996,3.2078,4471.1,4471.0,0.5508]
[1759974106195,3.8479,4471.6,4471.4,0.40243]
[1759974106395,3.8479,4471.6,4471.5,0.9469]
[1759974106995,3.21036999,4471.6,4471.5,0.9469]
[1759974108000,1.737,4471.0,4470.9,0.5508]
[1759974108198,1.737,4471.0,4470.9,0.7748]
[1759974109500,0.6401,4471.0,4470.9,0.7748]
[1759974109702,0.8961,4471.5,4471.3,0.40244]
[1759974109908,0.6401,4471.5,4471.4,0.9469]
[1759974110208,3.85046999,4471.6,4471.5,0.7229]
[1759974110803,4.69136999,4471.6,4471.5,0.5508]
[1759974111002,4.69136999,4471.6,4471.5,0.4994]
[1759974112308,4.69136999,4471.6,4471.5,0.7748]
[1759974112508,4.26626999,4471.6,4471.5,0.7748]
[1759974113000,4.26626999,4471.6,4471.5,0.5508]
[1759974113208,3.85046999,4471.6,4471.5,0.9469]
[1759974113909,3.21036999,4471.6,4471.5,0.9469]
[1759974115411,1.481,4470.9,4470.8,0.2754]
[1759974115708,1.481,4470.9,4470.8,0.4994]
[1759974116111,1.481,4470.9,4470.8,0.2754]
[1759974116411,1.481,4470.9,4470.8,0.4994]
[1759974117407,3.2078,4471.1,4470.9,0.1721]
[1759974117612,3.8479,4471.1,4471.0,0.5508]
[1759974117908,1.0559,4471.1,4471.0,0.5508]
[1759974118098,1.481,4471.1,4471.0,0.2754]
[1759974118304,4.6888,4471.1,4471.0,0.224]
[1759974118505,1.481,4471.1,4471.0,0.4994]
[1759974118705,0.256,4471.5,4471.0,0.9469]
[1759974118911,0.00256999,4471.6,4471.5,1.12532]
[1759974118912,0.64266999,4471.6,4471.5,1.12532]
[1759974119107,0.00256999,4471.6,4471.5,1.34932]
[1759974120407,0.00256999,4471.6,4471.5,1.41202]
[1759974120604,0.256,4473.0,4472.8,0.5508]
[1759974120802,1.503,4472.9,4472.8,0.224]
[1759974121002,0.4158,4471.4,4471.3,0.67784]
[1759974121210,1.481,4471.4,4471.3,0.90184]
[1759974121515,1.481,4471.4,4471.3,0.2754]
[1759974121814,1.48302309,4471.4,4471.3,0.00180182]
[1759974122019,1.48302309,4471.4,4471.3,0.07380182]
[1759974123015,0.6718,4470.5,4470.4,0.67792]
[1759974123203,1.3119,4470.5,4470.4,0.90192]
[1759974123408,1.3119,4470.5,4470.4,0.4994]
[1759974123606,0.6401,4471.3,4470.4,0.224]
[1759974123812,0.6401,4471.3,4471.2,0.5508]
[1759974124113,0.00202309,4471.4,4471.2,1.34934]
[1759974124311,0.64212309,4471.4,4471.2,1.34934]
[1759974126009,0.00202309,4471.4,4471.2,0.9469]
[1759974126214,0.6401,4471.3,4471.2,0.7748]
[1759974126715,1.0559,4471.3,4471.2,0.7748]
[1759974126914,1.481,4471.3,4470.7,0.40249]
[1759974127117,1.3119,4471.0,4470.9,0.5508]
[1759974127409,0.00202309,4471.4,4471.3,0.5508]
[1759974127614,0.00202309,4471.4,4471.3,0.9469]
[1759974127814,0.64212309,4471.4,4471.3,0.9469]
[1759974128110,1.48302309,4471.4,4471.3,0.224]
[1759974128316,0.256,4471.0,4470.9,0.2754]
[1759974128517,0.6718,4471.0,4470.9,0.4994]
[1759974128912,1.3017,4471.0,4470.9,0.7748]
[1759974129513,0.00202309,4471.4,4470.9,0.7748]
[1759974129718,0.63192309,4471.4,4471.3,0.4922]
[1759974131519,1.03032309,4471.4,4471.3,0.7162]
[1759974132514,0.00202309,4471.4,4471.3,0.4922]
[1759974132723,0.00202309,4471.4,4471.3,0.87]